fUST/lending_fUST_20250329
["ID","MTS","AMOUNT","RATE_DAILY","PERIOD"]
[356797096,1743216633360,-1012.45,0.00026748,2]
[356797097,1743216633369,-283.81552225,0.00026748,2]
[356797098,1743216633378,-500.0,0.00026748,2]
[356797099,1743216633388,-503.36199735,0.00026748,2]
[356797100,1743216633397,-964.2,0.00026748,2]
[356797101,1743216633407,-4103.14,0.00026748,2]
[356797102,1743216633416,-1940.96,0.00026748,2]
[356797103,1743216633425,-891.52,0.00026748,2]
[356797104,1743216633435,-4542.25,0.00026748,2]
[356797105,1743216633444,-375.03974387,0.00026748,2]
[356797106,1743216633454,-500.0,0.00026748,2]
[356797107,1743216633463,-3944.06,0.00026748,2]
[356797108,1743216633472,-2028.11,0.00026748,2]
[356797109,1743216633481,-1716.34,0.00026748,2]
[356797110,1743216633491,-1288.65,0.00026748,2]
[356797111,1743216633500,-4676.19,0.00026748,2]
[356797112,1743216633509,-500.0,0.00026748,2]
[356797113,1743216633518,-3529.13,0.00026748,2]
[356797114,1743216633528,-1368.77,0.00026748,2]
[356797115,1743216633550,-500.0,0.00026748,2]
[356797116,1743216633562,-4478.53,0.00026748,2]
[356797117,1743216633573,-500.0,0.00026748,2]
[356797118,1743216633583,-1267.46,0.00026748,2]
[356797119,1743216633593,-659.48,0.00026748,2]
[356797120,1743216633603,-500.0,0.00026748,2]
[356797121,1743216633614,-500.0,0.00026748,2]
[356797122,1743216633624,-6005.36,0.00026748,2]
[356797123,1743216633634,-1883.93,0.00026748,2]
[356797124,1743216633645,-166.13128678,0.00026748,2]
[356797125,1743216633655,-666.57,0.00026748,2]
[356797126,1743216633666,-500.0,0.00026748,2]
[356797127,1743216633676,-682.54,0.00026748,2]
[356797128,1743216633687,-11208.41,0.00026748,2]
[356797129,1743216633697,-30067.42,0.00026748,2]
[356797130,1743216633707,-2975.79,0.00026748,2]
[356797131,1743216633718,-5645.19,0.00026748,2]
[356797132,1743216633728,-500.0,0.00026748,2]
[356797133,1743216633738,-4164.5,0.00026748,2]
[356797134,1743216633748,-500.0,0.00026748,2]
[356797135,1743216633759,-5632.75,0.00026748,2]
[356797136,1743216633769,-500.0,0.00026748,2]
[356797137,1743216633779,-501.32897227,0.00026748,2]
[356797138,1743216633789,-1296.22,0.00026748,2]
[356797139,1743216633799,-500.0,0.00026748,2]
[356797140,1743216633810,-2560.14,0.00026748,2]
[356797141,1743216633821,-5810.87,0.00026748,2]
[356797142,1743216633831,-1007.6,0.00026748,2]
[356797143,1743216633842,-1915.82,0.00026748,2]
[356797144,1743216633852,-500.0,0.00026748,2]
[356797145,1743216633862,-3766.05833737,0.00026748,2]
[356797146,1743216633878,-467.09929999,0.00026748,2]
[356797147,1743216633903,-765.9789613,0.00026748,2]
[356797156,1743216639101,-500.0,0.00026461,2]
[356797157,1743216639111,-500.0,0.00026461,2]
[356797158,1743216639120,-500.0,0.00026461,2]
[356797159,1743216639132,-648.02388858,0.00026461,2]
[356797160,1743216639142,-505.15837974,0.00026462,2]
[356797161,1743216639151,-500.0,0.00026474,2]
[356797162,1743216639160,-184.34609191,0.00026474,2]
[356797176,1743216640319,-518.75390809,0.00026474,2]
[356797177,1743216640329,-500.0,0.00026474,2]
[356797178,1743216640339,-1208.55409194,0.00026748,2]
[356797181,1743216640793,-1786.1293094,0.00026748,2]
[356797182,1743216640803,-1571.6822116,0.00026748,2]
[356797186,1743216643204,-500.0,0.00026462,2]
[356797187,1743216643214,-186.00872219,0.00026462,2]
[356797192,1743216646341,-313.99127781,0.00026462,2]
[356797193,1743216646351,-505.69,0.00026462,2]
[356797194,1743216646362,-500.0,0.00026462,2]
[356797195,1743216646372,-1116.76,0.00026474,2]
[356797196,1743216646381,-1190.71,0.00026474,2]
[356797197,1743216646391,-6708.25,0.00026474,2]
[356797198,1743216646400,-500.0,0.00026736,2]
[356797200,1743216646410,-500.0,0.00026736,2]
[356797201,1743216646419,-505.69,0.00026736,2]
[356797202,1743216646429,-500.0,0.00026736,2]
[356797203,1743216646439,-41.6977884,0.00026748,2]
[356797204,1743216646449,-2775.34,0.00026748,2]
[356797205,1743216646459,-1121.28,0.00026748,2]
[356797206,1743216646469,-11866.15,0.00026748,2]
[356797207,1743216646478,-603.30067224,0.00026748,2]
[356797208,1743216646487,-500.0,0.00026748,2]
[356797209,1743216646497,-2409.35,0.00026748,2]
[356797210,1743216646507,-500.0,0.00026748,2]
[356797211,1743216646516,-703.1,0.00026748,2]
[356797212,1743216646526,-257.40520905,0.00026748,2]
[356797213,1743216646928,-242.59479095,0.00026748,2]
[356797214,1743216646939,-667.3300385,0.00026748,2]
[356797216,1743217205111,171.32318,0.00013699,2]
[356797217,1743217636112,-300.0,0.00023869,2]
[356797218,1743217636137,-33799.6864121,0.0002387,2]
[356797219,1743217636159,-1041.0,0.00024,2]
[356797220,1743217636182,-24900.0,0.00024021,2]
[356797221,1743217636204,-970.109849,0.00024082,2]
[356797222,1743217636224,-544.92113853,0.00024129,2]
[356797223,1743217636246,-284.36491412,0.00024981,2]
[356797224,1743217636266,-1928.02905423,0.00024981,2]
[356797225,1743217636287,-284.36491412,0.00024984,2]
[356797226,1743217636308,-284.36491412,0.00024987,2]
[356797227,1743217636329,-284.36491412,0.00024989,2]
[356797228,1743217636350,-284.36491412,0.00024992,2]
[356797229,1743217636371,-1385.70382694,0.00024992,2]
[356797230,1743217636392,-9382.33321954,0.00024992,2]
[356797231,1743217636413,-569.99,0.00025071,3]
[356797232,1743217636433,-500.0,0.00025073,2]
[356797233,1743217636453,-500.0,0.00025073,2]
[356797234,1743217636478,-502.98331566,0.00025073,2]
[356797235,1743217636499,-262.2880244,0.00025073,2]
[356797236,1743217636519,-500.0,0.00025073,2]
[356797237,1743217636540,-502.10923942,0.00025073,2]
[356797238,1743217636562,-500.0,0.00025073,2]
[356797239,1743217636583,-500.0,0.00025073,2]
[356797240,1743217636605,-500.0,0.00025073,2]
[356797241,1743217636627,-500.0,0.00025073,2]
[356797242,1743217636648,-500.0,0.00025073,2]
[356797243,1743217636668,-340.11047814,0.00025073,2]
[356797244,1743217636690,-494.25976458,0.00025073,2]
[356797245,1743217636711,-500.0,0.00025073,2]
[356797246,1743217636731,-500.0,0.00025073,2]
[356797247,1743217636751,-500.0,0.00025073,2]
[356797248,1743217636772,-500.0,0.00025073,2]
[356797249,1743217636793,-500.0,0.00025073,2]
[356797250,1743217636813,-600.0,0.00025078,2]
[356797251,1743217636834,-1089.14,0.00025081,2]
[356797252,1743217636857,-24021.68,0.00025081,2]
[356797253,1743217636878,-350.88618929,0.00025081,2]
[356797254,1743217636899,-3814.34237376,0.00025081,2]
[356797255,1743217639152,-1192.86249281,0.00025081,2]
[356797256,1743217649163,-1716.53513343,0.00025081,2]
[356797257,1743217649184,-1710.97,0.00025081,2]
[356797258,1743217649205,-500.0,0.00025081,2]
[356797259,1743217649225,-2462.1,0.00025081,2]
[356797260,1743217649246,-8981.88,0.00025081,2]
[356797261,1743217649268,-500.0,0.00025081,2]
[356797262,1743217649292,-842.63657869,0.00025081,2]
[356797263,1743217649316,-842.63657869,0.00025081,2]
[356797264,1743217649337,-500.0,0.00025081,2]
[356797265,1743217649362,-842.63657869,0.00025081,2]
[356797266,1743217649384,-500.0,0.00025081,2]
[356797267,1743217649407,-842.63657869,0.00025081,2]
[356797268,1743217649430,-842.63657869,0.00025081,2]
[356797269,1743217649452,-500.0,0.00025081,2]
[356797270,1743217649478,-842.63657869,0.00025081,2]
[356797271,1743217649500,-364.3392503,0.00025081,2]
[356797272,1743217649524,-842.63657869,0.00025081,2]
[356797273,1743217649547,-500.0,0.00025081,2]
[356797274,1743217649572,-842.63657869,0.00025081,2]
[356797275,1743217649598,-842.63657869,0.00025081,2]
[356797276,1743217649892,-842.63657869,0.00025081,2]
[356797277,1743217649920,-842.63657869,0.00025081,2]
[356797278,1743217649946,-842.63657869,0.00025081,2]
[356797279,1743217649970,-842.63657869,0.00025081,2]
[356797280,1743217649994,-842.63657869,0.00025081,2]
[356797281,1743217650020,-842.63657869,0.00025081,2]
[356797282,1743217650044,-842.63657869,0.00025081,2]
[356797283,1743217650068,-842.63657869,0.00025081,2]
[356797284,1743217650092,-842.63657869,0.00025081,2]
[356797285,1743217650116,-842.63657869,0.00025081,2]
[356797286,1743217650139,-842.63657869,0.00025081,2]
[356797287,1743217650162,-842.63657869,0.00025081,2]
[356797288,1743217650187,-842.63657869,0.00025081,2]
[356797289,1743217650210,-842.63657869,0.00025081,2]
[356797290,1743217650234,-842.63657869,0.00025081,2]
[356797291,1743217650259,-842.63657869,0.00025081,2]
[356797292,1743217650284,-842.63657869,0.00025081,2]
[356797293,1743217650309,-842.63657869,0.00025081,2]
[356797294,1743217650333,-842.63657869,0.00025081,2]
[356797295,1743217650358,-842.63657869,0.00025081,2]
[356797296,1743217650383,-842.63657869,0.00025081,2]
[356797297,1743217650406,-842.63657869,0.00025081,2]
[356797298,1743217650430,-842.63657869,0.00025081,2]
[356797299,1743217650454,-842.63657869,0.00025081,2]
[356797300,1743217650481,-842.63657869,0.00025081,2]
[356797301,1743217650507,-842.63657869,0.00025081,2]
[356797302,1743217650533,-842.63657869,0.00025081,2]
[356797303,1743217650560,-842.63657869,0.00025081,2]
[356797304,1743217650585,-842.63657869,0.00025081,2]
[356797305,1743217650611,-842.63657869,0.00025081,2]
[356797306,1743217650637,-842.63657869,0.00025081,2]
[356797307,1743217650667,-842.63657869,0.00025081,2]
[356797308,1743217650692,-842.63657869,0.00025081,2]
[356797309,1743217650720,-842.63657869,0.00025081,2]
[356797310,1743217650746,-842.63657869,0.00025081,2]
[356797311,1743217650771,-842.63657869,0.00025081,2]
[356797312,1743217650797,-842.63657869,0.00025081,2]
[356797313,1743217650821,-842.63657869,0.00025081,2]
[356797314,1743217650846,-842.63657869,0.00025081,2]
[356797315,1743217650870,-842.63657869,0.00025081,2]
[356797316,1743217650895,-842.63657869,0.00025081,2]
[356797317,1743217650921,-842.63657869,0.00025081,2]
[356797318,1743217650947,-842.63657869,0.00025081,2]
[356797319,1743217650971,-842.63657869,0.00025081,2]
[356797320,1743217650997,-842.63657869,0.00025081,2]
[356797321,1743217651021,-842.63657869,0.00025081,2]
[356797322,1743217651047,-842.63657869,0.00025081,2]
[356797323,1743217651073,-842.63657869,0.00025081,2]
[356797324,1743217651098,-842.63657869,0.00025081,2]
[356797325,1743217651127,-842.63657869,0.00025081,2]
[356797326,1743217651153,-842.63657869,0.00025081,2]
[356797327,1743217651177,-842.63657869,0.00025081,2]
[356797328,1743217651201,-842.63657869,0.00025081,2]
[356797329,1743217651227,-842.63657869,0.00025081,2]
[356797330,1743217651250,-842.63657869,0.00025081,2]
[356797331,1743217651273,-499.99999999,0.00025081,2]
[356797332,1743217651296,-1066.0438887,0.00025081,2]
[356797333,1743217651321,-1066.0438887,0.00025081,2]
[356797334,1743217651345,-1066.0438887,0.00025081,2]
[356797335,1743217651368,-1066.0438887,0.00025081,2]
[356797336,1743217651391,-1066.0438887,0.00025081,2]
[356797337,1743217651414,-1066.0438887,0.00025081,2]
[356797338,1743217651438,-1066.0438887,0.00025081,2]
[356797339,1743217651461,-1066.0438887,0.00025081,2]
[356797340,1743217651490,-1066.0438887,0.00025081,2]
[356797341,1743217651514,-1066.0438887,0.00025081,2]
[356797342,1743217651538,-1066.0438887,0.00025081,2]
[356797343,1743217651564,-1066.0438887,0.00025081,2]
[356797344,1743217651589,-1066.0438887,0.00025081,2]
[356797345,1743217651615,-1066.0438887,0.00025081,2]
[356797346,1743217651641,-1066.0438887,0.00025081,2]
[356797347,1743217651665,-1066.0438887,0.00025081,2]
[356797348,1743217651689,-1066.0438887,0.00025081,2]
[356797349,1743217651713,-1066.0438887,0.00025081,2]
[356797350,1743217651737,-1066.0438887,0.00025081,2]
[356797351,1743217651761,-1066.0438887,0.00025081,2]
[356797352,1743217651786,-1066.0438887,0.00025081,2]
[356797353,1743217651810,-1066.0438887,0.00025081,2]
[356797354,1743217651835,-1066.0438887,0.00025081,2]
[356797355,1743217651860,-1066.0438887,0.00025081,2]
[356797356,1743217651885,-1066.0438887,0.00025081,2]
[356797357,1743217651909,-1066.04388867,0.00025081,2]
[356797358,1743217651931,-186.55073417,0.00025082,2]
[356797359,1743217651953,-647.80181152,0.00025082,2]
[356797360,1743217651975,-51464.0320199,0.00025082,2]
[356797361,1743217651998,-34309.3546799,0.00025083,2]
[356797362,1743217652023,-1962.98,0.00025091,2]
[356797363,1743217652045,-500.0,0.00025091,2]
[356797364,1743217652068,-5031.5585615,0.00025091,2]
[356797365,1743217755101,-504.02827206,0.00025073,2]
[356797366,1743217755123,-500.0,0.00025073,2]
[356797367,1743217755145,-155.49781226,0.0002508,2]
[356797368,1743217755166,-300.0,0.0002508,2]
[356797369,1743217755193,-500.0,0.00025081,2]
[356797370,1743217755216,-500.0,0.00025081,2]
[356797371,1743217755239,-500.0,0.00025081,2]
[356797372,1743217755262,-5646.75,0.00025081,2]
[356797373,1743217755284,-1053.99138928,0.00025081,2]
[356797374,1743217756125,-970.7728885,0.00024657,2]
[356797375,1743217761151,-910.4171115,0.00024657,2]
[356797376,1743217761175,-463.97864036,0.00024931,2]
[356797377,1743217765092,-525.95965645,0.0002402,2]
[356797378,1743217765114,-291.8658686,0.00024277,2]
[356797379,1743217765135,-1417.21135964,0.00024931,2]
[356797380,1743217765156,-2329.70177387,0.00024981,2]
[356797381,1743217765177,-10744.25861072,0.00025081,2]
[356797382,1743217765200,-4003.77,0.00025081,2]
[356797383,1743217765220,-929.39,0.00025081,2]
[356797384,1743217765242,-4378.28,0.00025081,2]
[356797385,1743217765262,-1242.12,0.00025081,2]
[356797386,1743217765285,-500.0,0.00025081,2]
[356797387,1743217765309,-500.0,0.00025081,2]
[356797388,1743217765330,-500.0,0.00025081,2]
[356797389,1743217765352,-500.0,0.00025081,2]
[356797390,1743217765374,-500.0,0.00025081,2]
[356797391,1743217765396,-500.0,0.00025081,2]
[356797392,1743217765416,-500.0,0.00025081,2]
[356797393,1743217765437,-500.0,0.00025081,2]
[356797394,1743217765460,-500.0,0.00025081,2]
[356797395,1743217765481,-500.0,0.00025081,2]
[356797396,1743217765502,-500.0,0.00025081,2]
[356797397,1743217765526,-500.0,0.00025081,2]
[356797398,1743217765549,-500.0,0.00025081,2]
[356797399,1743217765571,-111.75160135,0.00025081,2]
[356797400,1743217772122,-500.0,0.0002402,2]
[356797401,1743217772148,-525.95965645,0.0002402,2]
[356797402,1743217772171,-525.95965645,0.0002402,2]
[356797403,1743217772194,-525.95965645,0.0002402,2]
[356797404,1743217772217,-233.52986283,0.0002402,2]
[356797431,1743217832473,-300.0,0.00024019,2]
[356797432,1743217832483,-525.95965645,0.0002402,2]
[356797433,1743217832493,-525.95965645,0.0002402,2]
[356797434,1743217832502,-525.95965645,0.0002402,2]
[356797435,1743217832512,-525.95965645,0.0002402,2]
[356797436,1743217832526,-525.95965645,0.0002402,2]
[356797437,1743217832536,-525.95965645,0.0002402,2]
[356797438,1743217832546,-525.95965645,0.0002402,2]
[356797439,1743217832555,-525.95965645,0.0002402,2]
[356797440,1743217832566,-525.95965645,0.0002402,2]
[356797441,1743217832575,-525.95965645,0.0002402,2]
[356797442,1743217832585,-525.95965645,0.0002402,2]
[356797443,1743217832596,-525.95965645,0.0002402,2]
[356797444,1743217832607,-525.95965645,0.0002402,2]
[356797445,1743217832616,-525.95965645,0.0002402,2]
[356797446,1743217832626,-525.95965645,0.0002402,2]
[356797447,1743217832635,-525.95965645,0.0002402,2]
[356797448,1743217832644,-525.95965645,0.0002402,2]
[356797449,1743217832654,-525.95965645,0.0002402,2]
[356797450,1743217832664,-525.95965645,0.0002402,2]
[356797451,1743217832674,-525.95965645,0.0002402,2]
[356797452,1743217832683,-525.95965645,0.0002402,2]
[356797453,1743217832692,-525.95965645,0.0002402,2]
[356797454,1743217832702,-525.95965645,0.0002402,2]
[356797455,1743217832711,-525.95965645,0.0002402,2]
[356797456,1743217832720,-525.95965645,0.0002402,2]
[356797457,1743217832730,-525.95965645,0.0002402,2]
[356797458,1743217832739,-525.95965645,0.0002402,2]
[356797459,1743217832750,-525.95965645,0.0002402,2]
[356797460,1743217832760,-525.95965645,0.0002402,2]
[356797461,1743217832769,-525.95965645,0.0002402,2]
[356797462,1743217832778,-525.95965645,0.0002402,2]
[356797463,1743217832788,-525.95965645,0.0002402,2]
[356797464,1743217832797,-500.0,0.00024657,2]
[356797465,1743217832806,-12751.74,0.00024657,2]
[356797466,1743217832816,-2004.75,0.00024657,2]
[356797467,1743217832825,-150.0,0.00024903,2]
[356797468,1743217832835,-500.0,0.00024931,2]
[356797469,1743217832845,-12751.74,0.00024931,2]
[356797470,1743217832855,-2004.75,0.00024931,2]
[356797471,1743217832864,-6653.5537405,0.0002499,2]
[356797472,1743217832874,-150.0,0.00025027,2]
[356797473,1743217832884,-288.49132333,0.00025073,2]
[356797474,1743217832893,-500.0,0.00025073,2]
[356797475,1743217832903,-500.0,0.00025073,2]
[356797476,1743217832912,-500.0,0.00025073,2]
[356797477,1743217832921,-500.0,0.00025073,2]
[356797478,1743217832930,-600.0,0.00025077,2]
[356797479,1743217832939,-500.0,0.00025077,2]
[356797480,1743217832949,-151.0,0.00025078,2]
[356797481,1743217832957,-4316.72,0.00025081,2]
[356797482,1743217832965,-1815.39,0.00025081,2]
[356797483,1743217832975,-25847.87,0.00025081,2]
[356797484,1743217832984,-753.33,0.00025081,2]
[356797485,1743217832993,-867.32,0.00025081,2]
[356797486,1743217833004,-500.0,0.00025081,2]
[356797487,1743217833013,-500.0,0.00025081,2]
[356797488,1743217833023,-500.0,0.00025081,2]
[356797489,1743217833033,-500.0,0.00025081,2]
[356797490,1743217833043,-500.0,0.00025081,2]
[356797491,1743217833053,-500.0,0.00025081,2]
[356797492,1743217833063,-500.0,0.00025081,2]
[356797493,1743217833073,-500.0,0.00025081,2]
[356797494,1743217833083,-500.0,0.00025081,2]
[356797495,1743217833093,-500.0,0.00025081,2]
[356797496,1743217833102,-500.0,0.00025081,2]
[356797497,1743217833112,-500.0,0.00025081,2]
[356797498,1743217833122,-500.0,0.00025081,2]
[356797499,1743217833132,-500.0,0.00025081,2]
[356797500,1743217833141,-500.0,0.00025081,2]
[356797501,1743217833152,-500.0,0.00025081,2]
[356797502,1743217833162,-500.0,0.00025081,2]
[356797503,1743217833172,-500.0,0.00025081,2]
[356797504,1743217833182,-500.0,0.00025081,2]
[356797505,1743217833192,-500.0,0.00025081,2]
[356797506,1743217833202,-500.0,0.00025081,2]
[356797507,1743217833213,-500.0,0.00025081,2]
[356797508,1743217833223,-500.0,0.00025081,2]
[356797509,1743217833234,-500.0,0.00025081,2]
[356797510,1743217833243,-500.0,0.00025081,2]
[356797511,1743217833254,-500.0,0.00025081,2]
[356797512,1743217833263,-500.0,0.00025081,2]
[356797513,1743217833273,-500.0,0.00025081,2]
[356797514,1743217833283,-500.0,0.00025081,2]
[356797515,1743217833292,-500.0,0.00025081,2]
[356797516,1743217833301,-500.0,0.00025081,2]
[356797517,1743217833311,-500.0,0.00025081,2]
[356797518,1743217833320,-500.0,0.00025081,2]
[356797519,1743217833331,-244.91718995,0.00025081,2]
[356797520,1743217833340,-500.0,0.00025081,2]
[356797521,1743217833351,-500.0,0.00025081,2]
[356797522,1743217833360,-500.0,0.00025081,2]
[356797523,1743217833370,-500.0,0.00025081,2]
[356797524,1743217833379,-500.0,0.00025081,2]
[356797525,1743217833390,-500.0,0.00025081,2]
[356797526,1743217833399,-500.0,0.00025081,2]
[356797527,1743217833408,-500.0,0.00025081,2]
[356797528,1743217833418,-500.0,0.00025081,2]
[356797529,1743217833427,-500.0,0.00025081,2]
[356797530,1743217833437,-500.0,0.00025081,2]
[356797531,1743217833447,-500.0,0.00025081,2]
[356797532,1743217833457,-500.0,0.00025081,2]
[356797533,1743217833467,-500.0,0.00025081,2]
[356797534,1743217833477,-500.0,0.00025081,2]
[356797535,1743217833487,-368.07248105,0.00025081,2]
[356797536,1743217833498,-500.0,0.00025081,2]
[356797537,1743217833508,-500.0,0.00025081,2]
[356797538,1743217833518,-500.0,0.00025081,2]
[356797539,1743217833529,-500.0,0.00025081,2]
[356797540,1743217833540,-500.0,0.00025081,2]
[356797541,1743217833550,-500.0,0.00025081,2]
[356797542,1743217833560,-500.0,0.00025081,2]
[356797543,1743217833571,-500.0,0.00025081,2]
[356797544,1743217833580,-500.0,0.00025081,2]
[356797545,1743217833589,-500.0,0.00025081,2]
[356797546,1743217833598,-500.0,0.00025081,2]
[356797547,1743217833609,-500.0,0.00025081,2]
[356797548,1743217833620,-500.0,0.00025081,2]
[356797549,1743217833629,-500.0,0.00025081,2]
[356797550,1743217833639,-500.0,0.00025081,2]
[356797551,1743217833649,-500.0,0.00025081,2]
[356797552,1743217833660,-500.0,0.00025081,2]
[356797553,1743217833669,-500.0,0.00025081,2]
[356797554,1743217833679,-500.0,0.00025081,2]
[356797555,1743217833688,-500.0,0.00025081,2]
[356797556,1743217833698,-500.0,0.00025081,2]
[356797557,1743217833707,-500.0,0.00025081,2]
[356797558,1743217833717,-500.0,0.00025081,2]
[356797559,1743217833727,-500.0,0.00025081,2]
[356797560,1743217833736,-500.0,0.00025081,2]
[356797561,1743217833745,-500.0,0.00025081,2]
[356797562,1743217833757,-500.0,0.00025081,2]
[356797563,1743217833767,-500.0,0.00025081,2]
[356797564,1743217833777,-500.0,0.00025081,2]
[356797565,1743217833787,-500.0,0.00025081,2]
[356797566,1743217833797,-500.0,0.00025081,2]
[356797567,1743217833807,-500.0,0.00025081,2]
[356797568,1743217833816,-68296.9280967,0.00025082,2]
[356797569,1743217833826,-27318.7712387,0.00025083,2]
[356797570,1743217833836,-1043.76,0.0002509,2]
[356797571,1743217833846,-23020.78,0.0002509,2]
[356797572,1743217833856,-1639.68,0.0002509,2]
[356797573,1743217833865,-677.09,0.0002509,2]
[356797574,1743217833875,-501.41403998,0.0002509,2]
[356797575,1743217833885,-500.0,0.0002509,2]
[356797576,1743217833894,-500.0,0.0002509,2]
[356797577,1743217833903,-500.0,0.0002509,2]
[356797578,1743217833912,-500.0,0.0002509,2]
[356797579,1743217833922,-500.0,0.0002509,2]
[356797580,1743217833932,-500.0,0.0002509,2]
[356797581,1743217833942,-1064.99,0.00025091,2]
[356797582,1743217833951,-7098.56,0.00025091,2]
[356797583,1743217833961,-500.0,0.00025091,2]
[356797584,1743217833970,-4756.67,0.00025091,2]
[356797585,1743217833980,-500.0,0.00025091,2]
[356797586,1743217833989,-8650.94,0.00025091,2]
[356797587,1743217833998,-500.0,0.00025091,2]
[356797588,1743217834008,-1221.69,0.00025091,2]
[356797589,1743217834018,-500.0,0.00025091,2]
[356797590,1743217834027,-500.0,0.00025091,2]
[356797591,1743217834037,-500.0,0.00025091,2]
[356797592,1743217834046,-1364.95,0.00025091,2]
[356797593,1743217834056,-2881.11,0.00025091,2]
[356797594,1743217834321,-500.0,0.00025091,2]
[356797595,1743217834331,-1255.02,0.00025091,2]
[356797596,1743217834341,-1027.84,0.00025091,2]
[356797597,1743217834351,-500.0,0.00025092,2]
[356797598,1743217834361,-500.0,0.00025092,2]
[356797599,1743217834370,-583.72017209,0.00025092,2]
[356797600,1743217834380,-500.0,0.00025092,2]
[356797601,1743217834390,-500.0,0.00025092,2]
[356797602,1743217834399,-500.0,0.00025092,2]
[356797603,1743217834409,-506.02815364,0.00025092,2]
[356797604,1743217834418,-1000.0,0.00025092,2]
[356797605,1743217834427,-1477.37,0.00025092,2]
[356797606,1743217834437,-500.0,0.00025092,2]
[356797607,1743217834446,-542.66,0.00025092,2]
[356797608,1743217834455,-537.27558611,0.00025092,2]
[356797609,1743217834465,-500.0,0.00025092,2]
[356797610,1743217834474,-1203.43,0.00025092,2]
[356797611,1743217834484,-500.0,0.00025092,2]
[356797612,1743217834493,-500.0,0.00025092,2]
[356797613,1743217834503,-520.1661567,0.00025092,2]
[356797614,1743217834513,-500.0,0.00025092,2]
[356797615,1743217834523,-500.0,0.00025092,2]
[356797616,1743217834537,-508.30228202,0.00025092,2]
[356797617,1743217834546,-500.0,0.00025092,2]
[356797618,1743217834556,-859.73,0.00025092,2]
[356797619,1743217834566,-500.0,0.00025092,2]
[356797620,1743217834577,-500.0,0.00025092,2]
[356797621,1743217834587,-500.0,0.00025092,2]
[356797622,1743217834597,-1618.89,0.00025092,2]
[356797623,1743217834607,-514.10485466,0.00025092,2]
[356797624,1743217834616,-500.0,0.00025092,2]
[356797625,1743217834626,-500.0,0.00025092,2]
[356797626,1743217834636,-500.0,0.00025092,2]
[356797627,1743217834646,-666.67,0.00025092,2]
[356797628,1743217834656,-500.0,0.00025092,2]
[356797629,1743217834665,-461.16797621,0.00025092,2]
[356797630,1743217834675,-500.0,0.00025092,2]
[356797631,1743217834686,-500.0,0.00025092,2]
[356797632,1743217834696,-528.50861315,0.00025092,2]
[356797633,1743217834706,-500.0,0.00025092,2]
[356797634,1743217834716,-500.0,0.00025092,2]
[356797635,1743217834725,-508.92248404,0.00025092,2]
[356797636,1743217834735,-500.0,0.00025092,2]
[356797637,1743217834744,-500.0,0.00025092,2]
[356797638,1743217834755,-500.0,0.00025092,2]
[356797639,1743217834765,-525.30920992,0.00025092,2]
[356797640,1743217834775,-500.0,0.00025092,2]
[356797641,1743217834785,-515.18,0.00025092,2]
[356797642,1743217834795,-500.0,0.00025092,2]
[356797643,1743217834804,-500.0,0.00025092,2]
[356797644,1743217834814,-841.8,0.00025092,2]
[356797645,1743217834823,-500.0,0.00025092,2]
[356797646,1743217834833,-500.0,0.00025092,2]
[356797647,1743217834843,-500.0,0.00025092,2]
[356797648,1743217834852,-500.0,0.00025092,2]
[356797649,1743217834862,-507.56577066,0.00025092,2]
[356797650,1743217834871,-1040.3,0.00025092,2]
[356797651,1743217834879,-500.0,0.00025092,2]
[356797652,1743217834887,-500.0,0.00025092,2]
[356797653,1743217834897,-506.98882966,0.00025092,2]